[Event "Late-Titled-Tuesday-Blitz-January-30-2024"]
[Site "Chess.com"]
[Date "2024.01.30"]
[Round "1"]
[White "MajorCoast"]
[Black "TimGrutter03"]
[Result "0-1"]
[WhiteElo "2221"]
[BlackElo "2600"]
[TimeControl "180+1"]
[EndTime "14:08:04 PST"]
[Termination "TimGrutter03 won by checkmate"]

1. c3 {[%clk 0:02:59.6]} 1... g6 {[%clk 0:02:55.8]} 2. d4 {[%clk 0:03:00.5]}
2... Bg7 {[%clk 0:02:56.3]} 3. Nf3 {[%clk 0:03:00.4]} 3... d6 {[%clk 0:02:55.7]}
4. Bf4 {[%clk 0:03:01]} 4... Nc6 {[%clk 0:02:55.2]} 5. h3 {[%clk 0:03:01.5]}
5... Nf6 {[%clk 0:02:51.2]} 6. e3 {[%clk 0:03:00.5]} 6... O-O {[%clk 0:02:51.3]}
7. Nbd2 {[%clk 0:03:00.6]} 7... Re8 {[%clk 0:02:50.1]} 8. Bh2 {[%clk 0:03:00.4]}
8... e5 {[%clk 0:02:49.1]} 9. dxe5 {[%clk 0:02:56.3]} 9... dxe5 {[%clk
0:02:48.4]} 10. Nc4 {[%clk 0:02:56]} 10... Nd7 {[%clk 0:02:32.4]} 11. Be2 {[%clk
0:02:40.4]} 11... Qe7 {[%clk 0:02:28.3]} 12. O-O {[%clk 0:02:35]} 12... e4
{[%clk 0:02:20.9]} 13. Nd4 {[%clk 0:02:33.8]} 13... Nce5 {[%clk 0:02:12.4]} 14.
Nb5 {[%clk 0:02:27.9]} 14... Nb6 {[%clk 0:02:10.8]} 15. Nxe5 {[%clk 0:02:18]}
15... Bxe5 {[%clk 0:02:08.9]} 16. Bxe5 {[%clk 0:02:17.8]} 16... Qxe5 {[%clk
0:02:09.8]} 17. Qd4 {[%clk 0:02:17]} 17... Qe7 {[%clk 0:02:02.7]} 18. a4 {[%clk
0:02:06.2]} 18... a6 {[%clk 0:01:59]} 19. Na3 {[%clk 0:02:06.1]} 19... c5 {[%clk
0:01:53.8]} 20. Qd2 {[%clk 0:01:57.6]} 20... Nxa4 {[%clk 0:01:51]} 21. Nc4
{[%clk 0:01:52.4]} 21... b5 {[%clk 0:01:49.5]} 22. Na5 {[%clk 0:01:41]} 22...
Qc7 {[%clk 0:01:39.9]} 23. Nc4 {[%clk 0:01:33.8]} 23... Be6 {[%clk 0:01:33.7]}
24. b3 {[%clk 0:01:19.7]} 24... Nb6 {[%clk 0:01:29.2]} 25. Nxb6 {[%clk
0:01:19.7]} 25... Qxb6 {[%clk 0:01:29.8]} 26. c4 {[%clk 0:01:19.1]} 26... Red8
{[%clk 0:01:21.3]} 27. Qc2 {[%clk 0:01:14.5]} 27... f5 {[%clk 0:01:15.2]} 28.
Rfd1 {[%clk 0:01:14.5]} 28... b4 {[%clk 0:01:10.1]} 29. Rxd8+ {[%clk 0:01:10.8]}
29... Rxd8 {[%clk 0:01:11]} 30. Rd1 {[%clk 0:01:10.9]} 30... a5 {[%clk
0:01:09.7]} 31. f3 {[%clk 0:00:54.3]} 31... exf3 {[%clk 0:01:02.4]} 32. Bxf3
{[%clk 0:00:55.2]} 32... Qc7 {[%clk 0:00:52.9]} 33. Bd5 {[%clk 0:00:51.3]} 33...
Bxd5 {[%clk 0:00:43]} 34. cxd5 {[%clk 0:00:52.2]} 34... Qe7 {[%clk 0:00:43.5]}
35. Kf2 {[%clk 0:00:49.7]} 35... Qd6 {[%clk 0:00:33.4]} 36. Qc4 {[%clk
0:00:48.3]} 36... Re8 {[%clk 0:00:32.6]} 37. Rc1 {[%clk 0:00:44.6]} 37... f4
{[%clk 0:00:27.1]} 38. e4 {[%clk 0:00:41]} 38... f3 {[%clk 0:00:24.8]} 39. gxf3
{[%clk 0:00:36.6]} 39... Qh2+ {[%clk 0:00:23.3]} 40. Ke3 {[%clk 0:00:36.3]}
40... Rf8 {[%clk 0:00:22.6]} 41. Rf1 {[%clk 0:00:30.9]} 41... Qxh3 {[%clk
0:00:18.4]} 42. d6+ {[%clk 0:00:27.9]} 42... Kg7 {[%clk 0:00:18.6]} 43. e5
{[%clk 0:00:22.6]} 43... Qh6+ {[%clk 0:00:16.4]} 44. Ke2 {[%clk 0:00:17.3]}
44... Qh2+ {[%clk 0:00:09.5]} 45. Rf2 {[%clk 0:00:17.3]} 45... Qxe5+ {[%clk
0:00:09.5]} 46. Qe4 {[%clk 0:00:14.2]} 46... Qxd6 {[%clk 0:00:07.7]} 47. Rg2
{[%clk 0:00:10.8]} 47... Rf7 {[%clk 0:00:07.6]} 48. Rg4 {[%clk 0:00:09.3]} 48...
Re7 {[%clk 0:00:07.7]} 49. Rxg6+ {[%clk 0:00:06.5]} 49... hxg6 {[%clk
0:00:06.9]} 50. Qxe7+ {[%clk 0:00:06.9]} 50... Qxe7+ {[%clk 0:00:07.6]} 51. Kf2
{[%clk 0:00:07.5]} 51... Qe5 {[%clk 0:00:06.9]} 52. f4 {[%clk 0:00:07.6]} 52...
Qxf4+ {[%clk 0:00:07]} 53. Kg2 {[%clk 0:00:08.5]} 53... Qd4 {[%clk 0:00:07.4]}
54. Kh3 {[%clk 0:00:09.4]} 54... a4 {[%clk 0:00:07.6]} 55. Kh2 {[%clk
0:00:10.3]} 55... a3 {[%clk 0:00:08.1]} 56. Kh1 {[%clk 0:00:11.2]} 56... Qd2
{[%clk 0:00:07.3]} 57. Kg1 {[%clk 0:00:11.3]} 57... a2 {[%clk 0:00:07.9]} 58.
Kh1 {[%clk 0:00:12.2]} 58... a1=Q# {[%clk 0:00:07.3]} 0-1

[Event "Late-Titled-Tuesday-Blitz-January-30-2024"]
[Site "Chess.com"]
[Date "2024.01.30"]
[Round "1"]
[White "Chempiblinka"]
[Black "crazy_but_lazy"]
[Result "0-1"]
[WhiteElo "2298"]
[BlackElo "2621"]
[TimeControl "180+1"]
[EndTime "14:08:05 PST"]
[Termination "crazy_but_lazy won on time"]

1. Nf3 {[%clk 0:02:56.4]} 1... d5 {[%clk 0:02:57.1]} 2. g3 {[%clk 0:02:55.9]}
2... Nd7 {[%clk 0:02:50.3]} 3. c4 {[%clk 0:02:50.3]} 3... dxc4 {[%clk
0:02:48.6]} 4. Na3 {[%clk 0:02:37.9]} 4... Ngf6 {[%clk 0:02:40.8]} 5. Nxc4
{[%clk 0:02:34]} 5... a6 {[%clk 0:02:30.8]} 6. Bg2 {[%clk 0:02:32.7]} 6... e6
{[%clk 0:02:29]} 7. O-O {[%clk 0:02:30.1]} 7... Be7 {[%clk 0:02:26.8]} 8. b3
{[%clk 0:02:26.1]} 8... O-O {[%clk 0:02:27.2]} 9. Bb2 {[%clk 0:02:26.5]} 9... b5
{[%clk 0:02:26.2]} 10. Nce5 {[%clk 0:02:17.9]} 10... Bb7 {[%clk 0:02:24.4]} 11.
Rc1 {[%clk 0:01:58.8]} 11... c5 {[%clk 0:02:22.4]} 12. d4 {[%clk 0:01:39.9]}
12... Rc8 {[%clk 0:01:59.6]} 13. dxc5 {[%clk 0:01:32.3]} 13... Nxc5 {[%clk
0:01:56.6]} 14. Bd4 {[%clk 0:01:02.6]} 14... Nce4 {[%clk 0:01:44.3]} 15. Rxc8
{[%clk 0:01:01]} 15... Qxc8 {[%clk 0:01:43.3]} 16. Qa1 {[%clk 0:00:59.4]} 16...
Qa8 {[%clk 0:01:37.3]} 17. Nh4 {[%clk 0:00:36]} 17... Rd8 {[%clk 0:01:29.5]} 18.
e3 {[%clk 0:00:30.7]} 18... Nd2 {[%clk 0:01:25]} 19. Rd1 {[%clk 0:00:29.2]}
19... Bxg2 {[%clk 0:01:23.6]} 20. Nxg2 {[%clk 0:00:28.5]} 20... Nde4 {[%clk
0:01:23.5]} 21. Rc1 {[%clk 0:00:17.1]} 21... Ba3 {[%clk 0:01:13.4]} 22. Rc2
{[%clk 0:00:13.4]} 22... h6 {[%clk 0:01:07]} 23. Qd1 {[%clk 0:00:13.8]} 23...
Ng5 {[%clk 0:00:48.1]} 24. h4 {[%clk 0:00:11.9]} 24... Nge4 {[%clk 0:00:48.7]}
25. Nf4 {[%clk 0:00:10.8]} 25... Bd6 {[%clk 0:00:37.8]} 26. Qe2 {[%clk
0:00:10.7]} 26... Bxe5 {[%clk 0:00:24.6]} 27. Bxe5 {[%clk 0:00:10.6]} 27... Nd5
{[%clk 0:00:20.7]} 28. Nd3 {[%clk 0:00:10.1]} 28... f6 {[%clk 0:00:17]} 29. Bd4
{[%clk 0:00:10]} 29... e5 {[%clk 0:00:16.6]} 30. Ba1 {[%clk 0:00:10.3]} 30...
Ne7 {[%clk 0:00:14.4]} 31. Ne1 {[%clk 0:00:08.1]} 31... Qd5 {[%clk 0:00:13.7]}
32. Bb2 {[%clk 0:00:07]} 32... Qd1 {[%clk 0:00:13.3]} 33. Qxd1 {[%clk
0:00:06.3]} 33... Rxd1 {[%clk 0:00:14.2]} 34. Rc1 {[%clk 0:00:06.9]} 34... Rd7
{[%clk 0:00:11.7]} 35. Nf3 {[%clk 0:00:06.1]} 35... Nf5 {[%clk 0:00:07.9]} 36.
Ba3 {[%clk 0:00:06.5]} 36... Kh7 {[%clk 0:00:07.8]} 37. Rc8 {[%clk 0:00:06.7]}
37... Nfd6 {[%clk 0:00:06.7]} 38. Rc6 {[%clk 0:00:06.3]} 38... a5 {[%clk
0:00:06.2]} 39. Ra6 {[%clk 0:00:06.1]} 39... b4 {[%clk 0:00:05.7]} 40. Bb2
{[%clk 0:00:06.6]} 40... Nc3 {[%clk 0:00:05.3]} 41. Bxc3 {[%clk 0:00:06.1]}
41... bxc3 {[%clk 0:00:05.4]} 42. Rc6 {[%clk 0:00:06.8]} 42... Ne4 {[%clk
0:00:05.3]} 43. Kg2 {[%clk 0:00:07.4]} 43... Rd1 {[%clk 0:00:05.6]} 44. h5
{[%clk 0:00:06.8]} 44... Ra1 {[%clk 0:00:05.4]} 45. Nh4 {[%clk 0:00:05]} 45...
Kg8 {[%clk 0:00:05.7]} 46. Ng6 {[%clk 0:00:05.6]} 46... Kf7 {[%clk 0:00:06.2]}
47. Rc8 {[%clk 0:00:06.4]} 47... Rxa2 {[%clk 0:00:04.6]} 48. Rc7+ {[%clk
0:00:06.7]} 48... Ke6 {[%clk 0:00:04.5]} 49. Rxg7 {[%clk 0:00:05.9]} 49... c2
{[%clk 0:00:03.9]} 50. Rc7 {[%clk 0:00:06.1]} 50... Kd6 {[%clk 0:00:04]} 51. Rc4
{[%clk 0:00:05.2]} 51... Nd2 {[%clk 0:00:04.4]} 52. Rc8 {[%clk 0:00:04.6]} 52...
Nxb3 {[%clk 0:00:04.7]} 53. Rd8+ {[%clk 0:00:04.9]} 53... Kc7 {[%clk 0:00:04.5]}
0-1

[Event "Late-Titled-Tuesday-Blitz-January-30-2024"]
[Site "Chess.com"]
[Date "2024.01.30"]
[Round "1"]
[White "Szparu"]
[Black "vesalhamedinia"]
[Result "1-0"]
[WhiteElo "2779"]
[BlackElo "2456"]
[TimeControl "180+1"]
[EndTime "14:08:07 PST"]
[Termination "Szparu won by resignation"]

1. Nf3 {[%clk 0:03:00.9]} 1... d5 {[%clk 0:02:59.6]} 2. d4 {[%clk 0:02:59.6]}
2... e6 {[%clk 0:02:59.8]} 3. c4 {[%clk 0:02:59.4]} 3... Nf6 {[%clk 0:02:59.9]}
4. g3 {[%clk 0:02:58.6]} 4... Be7 {[%clk 0:02:59.5]} 5. Bg2 {[%clk 0:02:57.3]}
5... O-O {[%clk 0:03:00.3]} 6. Nc3 {[%clk 0:02:56.5]} 6... c6 {[%clk 0:03:00.7]}
7. Qd3 {[%clk 0:02:53.8]} 7... dxc4 {[%clk 0:02:59.5]} 8. Qxc4 {[%clk
0:02:53.7]} 8... b5 {[%clk 0:03:00.3]} 9. Qd3 {[%clk 0:02:53.1]} 9... a6 {[%clk
0:03:00.1]} 10. O-O {[%clk 0:02:50.8]} 10... Bb7 {[%clk 0:03:00.3]} 11. Ne5
{[%clk 0:02:33.9]} 11... Qb6 {[%clk 0:02:55.3]} 12. Be3 {[%clk 0:02:33.1]} 12...
Nd5 {[%clk 0:02:51.5]} 13. Rac1 {[%clk 0:02:19.1]} 13... Rd8 {[%clk 0:02:41.2]}
14. Ne4 {[%clk 0:02:07.3]} 14... Nd7 {[%clk 0:02:37.4]} 15. Nxd7 {[%clk
0:01:55]} 15... Rxd7 {[%clk 0:02:37.3]} 16. Nc5 {[%clk 0:01:55.5]} 16... Rdd8
{[%clk 0:01:53.7]} 17. Bd2 {[%clk 0:01:56]} 17... Rac8 {[%clk 0:01:48]} 18. Rc2
{[%clk 0:01:55.9]} 18... a5 {[%clk 0:01:42.9]} 19. Rfc1 {[%clk 0:01:50]} 19...
Bf6 {[%clk 0:01:35.2]} 20. e3 {[%clk 0:01:42.8]} 20... Ba8 {[%clk 0:01:29.2]}
21. Qe2 {[%clk 0:01:40.4]} 21... e5 {[%clk 0:01:25.9]} 22. dxe5 {[%clk
0:01:19.3]} 22... Bxe5 {[%clk 0:01:26.8]} 23. Nd3 {[%clk 0:01:18.7]} 23... Bf6
{[%clk 0:01:26.4]} 24. e4 {[%clk 0:01:18.7]} 24... Nb4 {[%clk 0:01:07.6]} 25.
Nxb4 {[%clk 0:01:16.5]} 25... axb4 {[%clk 0:01:08.1]} 26. Bxb4 {[%clk
0:01:15.8]} 26... Bd4 {[%clk 0:01:08.3]} 27. Bc5 {[%clk 0:01:11.8]} 27... Qa6
{[%clk 0:00:57.4]} 28. a3 {[%clk 0:01:09]} 28... Bb7 {[%clk 0:00:52.7]} 29. h4
{[%clk 0:01:08.5]} 29... Qa4 {[%clk 0:00:51.9]} 30. e5 {[%clk 0:00:55]} 30...
Re8 {[%clk 0:00:30.7]} 31. Bd6 {[%clk 0:00:55]} 31... Qa6 {[%clk 0:00:25.4]} 32.
Qg4 {[%clk 0:00:47.2]} 32... Bxe5 {[%clk 0:00:19.6]} 33. Bxe5 {[%clk 0:00:28]}
33... Rxe5 {[%clk 0:00:20.5]} 34. Qxc8+ {[%clk 0:00:19.6]} 34... Bxc8 {[%clk
0:00:20]} 35. Rxc6 {[%clk 0:00:19.9]} 35... Re8 {[%clk 0:00:11.9]} 36. Rxa6
{[%clk 0:00:19]} 36... Bxa6 {[%clk 0:00:12.6]} 37. Bf1 {[%clk 0:00:14]} 37... h6
{[%clk 0:00:12.1]} 38. Rc5 {[%clk 0:00:12.5]} 38... Rb8 {[%clk 0:00:11.8]} 39.
b4 {[%clk 0:00:11.9]} 39... Kf8 {[%clk 0:00:11.7]} 40. Kh2 {[%clk 0:00:10.1]}
40... Ke7 {[%clk 0:00:12.2]} 41. a4 {[%clk 0:00:08.4]} 41... Kd6 {[%clk
0:00:10.9]} 42. axb5 {[%clk 0:00:06.4]} 42... Bb7 {[%clk 0:00:11.4]} 43. g4
{[%clk 0:00:07.1]} 43... Bf3 {[%clk 0:00:11.4]} 44. Kg3 {[%clk 0:00:07.2]} 44...
Be4 {[%clk 0:00:11.9]} 45. Kf4 {[%clk 0:00:07]} 45... Bd5 {[%clk 0:00:12.3]} 46.
h5 {[%clk 0:00:06.3]} 46... f6 {[%clk 0:00:12.5]} 47. f3 {[%clk 0:00:06.3]}
47... Re8 {[%clk 0:00:13]} 48. Bd3 {[%clk 0:00:05.6]} 48... Re3 {[%clk
0:00:13.4]} 49. Kxe3 {[%clk 0:00:05.6]} 49... f5 {[%clk 0:00:12.8]} 50. Bxf5
{[%clk 0:00:05.5]} 50... Bb3 {[%clk 0:00:12.6]} 51. Kd4 {[%clk 0:00:05.9]} 51...
Ba4 {[%clk 0:00:13.2]} 52. b6 {[%clk 0:00:06.4]} 1-0

[Event "Late-Titled-Tuesday-Blitz-January-30-2024"]
[Site "Chess.com"]
[Date "2024.01.30"]
[Round "1"]
[White "HajiyevKanan"]
[Black "lluiss"]
[Result "1-0"]
[WhiteElo "2591"]
[BlackElo "2170"]
[TimeControl "180+1"]
[EndTime "14:08:09 PST"]
[Termination "HajiyevKanan won by resignation"]

1. d4 {[%clk 0:02:57.3]} 1... d5 {[%clk 0:02:56.5]} 2. Nf3 {[%clk 0:02:58.2]}
2... c6 {[%clk 0:02:55.6]} 3. c4 {[%clk 0:02:59.1]} 3... e6 {[%clk 0:02:54.6]}
4. cxd5 {[%clk 0:03:00]} 4... cxd5 {[%clk 0:02:52.6]} 5. Nc3 {[%clk 0:03:00.9]}
5... Nf6 {[%clk 0:02:48]} 6. Bg5 {[%clk 0:03:01.1]} 6... Be7 {[%clk 0:02:47.5]}
7. e3 {[%clk 0:03:01.2]} 7... O-O {[%clk 0:02:47.3]} 8. Bd3 {[%clk 0:03:01.7]}
8... b6 {[%clk 0:02:47.6]} 9. O-O {[%clk 0:03:02.1]} 9... Ba6 {[%clk 0:02:47.6]}
10. Bxa6 {[%clk 0:03:00.9]} 10... Nxa6 {[%clk 0:02:48.5]} 11. Rc1 {[%clk
0:03:01.1]} 11... Qd7 {[%clk 0:02:19.6]} 12. Ne5 {[%clk 0:03:00.4]} 12... Qb7
{[%clk 0:02:19.6]} 13. Qa4 {[%clk 0:03:00.3]} 13... Rfc8 {[%clk 0:02:18.6]} 14.
Nb5 {[%clk 0:02:57]} 14... Nc7 {[%clk 0:02:05.6]} 15. Bxf6 {[%clk 0:02:34]}
15... Bxf6 {[%clk 0:01:56.3]} 16. Nd6 {[%clk 0:02:32.6]} 16... b5 {[%clk
0:01:39.7]} 17. Nxb7 {[%clk 0:02:19.9]} 17... bxa4 {[%clk 0:01:38.9]} 18. Nd6
{[%clk 0:02:20]} 18... Rd8 {[%clk 0:01:30.3]} 19. Ndxf7 {[%clk 0:02:20.4]} 19...
Rdc8 {[%clk 0:01:24.8]} 20. Nd6 {[%clk 0:02:19.1]} 20... Rd8 {[%clk 0:01:22.9]}
21. Nb7 {[%clk 0:02:19.5]} 21... Rdc8 {[%clk 0:01:20.9]} 22. Nd6 {[%clk
0:02:02.4]} 22... Rd8 {[%clk 0:01:20.3]} 23. Rxc7 {[%clk 0:01:58.8]} 23... Rxd6
{[%clk 0:01:20.4]} 24. Rfc1 {[%clk 0:01:58.7]} 24... h6 {[%clk 0:01:18]} 25. Nc6
{[%clk 0:01:42]} 25... Bd8 {[%clk 0:01:11.8]} 26. Nxd8 {[%clk 0:01:29.8]} 26...
Rdxd8 {[%clk 0:01:11.2]} 27. h4 {[%clk 0:01:23.9]} 27... Rdb8 {[%clk 0:01:11]}
28. R1c2 {[%clk 0:01:23.6]} 28... Rb6 {[%clk 0:01:09.2]} 29. Re7 {[%clk
0:01:23.2]} 29... Kh8 {[%clk 0:01:01.5]} 30. h5 {[%clk 0:01:20.2]} 30... Rab8
{[%clk 0:01:01.1]} 31. Rcc7 {[%clk 0:01:16.8]} 31... Rg8 {[%clk 0:00:58.2]} 32.
Rxa7 {[%clk 0:00:59]} 32... Rxb2 {[%clk 0:00:55.9]} 33. Rxa4 {[%clk 0:00:58.7]}
33... Rb1+ {[%clk 0:00:50.4]} 34. Kh2 {[%clk 0:00:58]} 34... Rb2 {[%clk
0:00:51]} 35. Kg3 {[%clk 0:00:56.5]} 35... g6 {[%clk 0:00:51.5]} 36. Raa7 {[%clk
0:00:33.8]} 36... gxh5+ {[%clk 0:00:50.6]} 37. Kh4 {[%clk 0:00:30.1]} 37... Rxg2
{[%clk 0:00:48.7]} 38. Rxe6 {[%clk 0:00:24.7]} 38... Rbxf2 {[%clk 0:00:47.9]}
39. Re8+ {[%clk 0:00:21.7]} 39... Rg8 {[%clk 0:00:46.3]} 40. Rxg8+ {[%clk
0:00:22]} 40... Kxg8 {[%clk 0:00:46]} 41. Kxh5 {[%clk 0:00:20.5]} 41... Re2
{[%clk 0:00:37.5]} 42. Kg6 {[%clk 0:00:19.4]} 42... Rg2+ {[%clk 0:00:38.1]} 43.
Kxh6 {[%clk 0:00:19.1]} 43... Rg3 {[%clk 0:00:36.6]} 44. Re7 {[%clk 0:00:18.1]}
44... Kf8 {[%clk 0:00:34.3]} 45. Re5 {[%clk 0:00:18.2]} 45... Rg2 {[%clk
0:00:34.6]} 46. a4 {[%clk 0:00:17.6]} 46... Ra2 {[%clk 0:00:35.5]} 47. Rxd5
{[%clk 0:00:17.8]} 47... Rxa4 {[%clk 0:00:35.3]} 48. Re5 {[%clk 0:00:17.2]}
48... Ra6+ {[%clk 0:00:33.7]} 49. Kg5 {[%clk 0:00:17.2]} 49... Ra1 {[%clk
0:00:32.3]} 50. Kf5 {[%clk 0:00:17.3]} 50... Ra6 {[%clk 0:00:31.2]} 51. d5
{[%clk 0:00:17.2]} 51... Kf7 {[%clk 0:00:31.2]} 52. Re6 {[%clk 0:00:17.4]} 52...
Ra5 {[%clk 0:00:29.9]} 53. e4 {[%clk 0:00:17.6]} 53... Ra1 {[%clk 0:00:29.1]}
54. Rb6 {[%clk 0:00:17.7]} 54... Rf1+ {[%clk 0:00:29]} 55. Ke5 {[%clk 0:00:18]}
55... Rh1 {[%clk 0:00:26.5]} 56. Rb7+ {[%clk 0:00:18.2]} 56... Ke8 {[%clk
0:00:25.9]} 57. d6 {[%clk 0:00:17.9]} 57... Rh5+ {[%clk 0:00:23.7]} 58. Ke6
{[%clk 0:00:17.8]} 58... Rh6+ {[%clk 0:00:23.2]} 59. Kd5 {[%clk 0:00:18.1]}
59... Kd8 {[%clk 0:00:20.9]} 60. e5 {[%clk 0:00:17.3]} 60... Kc8 {[%clk
0:00:17.2]} 61. Rc7+ {[%clk 0:00:16.9]} 61... Kd8 {[%clk 0:00:16.2]} 62. Rg7
{[%clk 0:00:16.7]} 62... Rh1 {[%clk 0:00:14.1]} 63. Rg8+ {[%clk 0:00:13]} 1-0

[Event "Late-Titled-Tuesday-Blitz-January-30-2024"]
[Site "Chess.com"]
[Date "2024.01.30"]
[Round "1"]
[White "AsaHoffmann"]
[Black "CrushingKings"]
[Result "1-0"]
[WhiteElo "2341"]
[BlackElo "2623"]
[TimeControl "180+1"]
[EndTime "14:08:11 PST"]
[Termination "AsaHoffmann won by resignation"]

1. d4 {[%clk 0:02:48.4]} 1... g6 {[%clk 0:02:58.5]} 2. e4 {[%clk 0:02:47.9]}
2... Bg7 {[%clk 0:02:56]} 3. Be3 {[%clk 0:02:47.2]} 3... c6 {[%clk 0:02:56.9]}
4. Qd2 {[%clk 0:02:46.2]} 4... d5 {[%clk 0:02:56.6]} 5. Nc3 {[%clk 0:02:42.6]}
5... dxe4 {[%clk 0:02:55.5]} 6. Nxe4 {[%clk 0:02:41.1]} 6... Nf6 {[%clk
0:02:56.4]} 7. Nxf6+ {[%clk 0:02:37.9]} 7... exf6 {[%clk 0:02:54.5]} 8. O-O-O
{[%clk 0:02:35.4]} 8... O-O {[%clk 0:02:53.1]} 9. Bc4 {[%clk 0:02:34.1]} 9...
Nd7 {[%clk 0:02:51]} 10. Bh6 {[%clk 0:02:33.7]} 10... Nb6 {[%clk 0:02:50.2]} 11.
Bb3 {[%clk 0:02:33.6]} 11... a5 {[%clk 0:02:45.6]} 12. a3 {[%clk 0:02:30.5]}
12... a4 {[%clk 0:02:45.3]} 13. Ba2 {[%clk 0:02:30.2]} 13... Be6 {[%clk
0:02:41.8]} 14. Bxe6 {[%clk 0:02:24.2]} 14... fxe6 {[%clk 0:02:41.7]} 15. Bxg7
{[%clk 0:02:22.3]} 15... Kxg7 {[%clk 0:02:40.1]} 16. h4 {[%clk 0:02:22.3]} 16...
Qd5 {[%clk 0:02:26.3]} 17. Kb1 {[%clk 0:02:18.2]} 17... Nc4 {[%clk 0:02:22.8]}
18. Qc3 {[%clk 0:02:10.3]} 18... Ra5 {[%clk 0:02:15.8]} 19. Ne2 {[%clk
0:01:59.1]} 19... g5 {[%clk 0:01:43.7]} 20. hxg5 {[%clk 0:01:54.6]} 20... fxg5
{[%clk 0:01:40.4]} 21. Qh3 {[%clk 0:01:35.1]} 21... Qf5 {[%clk 0:01:00.9]} 22.
Qh6+ {[%clk 0:01:34.4]} 22... Kg8 {[%clk 0:01:00.4]} 23. Ng3 {[%clk 0:01:34]}
23... Qg6 {[%clk 0:00:59.1]} 24. Qxg6+ {[%clk 0:01:32.1]} 24... hxg6 {[%clk
0:00:56.9]} 25. Ne4 {[%clk 0:01:26.6]} 25... Rb5 {[%clk 0:00:56.4]} 26. Rh3
{[%clk 0:01:08.6]} 26... g4 {[%clk 0:00:21.7]} 27. Rh6 {[%clk 0:01:02.9]} 27...
Rxb2+ {[%clk 0:00:14.8]} 28. Kc1 {[%clk 0:01:02.4]} 28... Ra2 {[%clk 0:00:14.8]}
29. Kb1 {[%clk 0:00:54.9]} 29... Rb2+ {[%clk 0:00:15.1]} 30. Kc1 {[%clk
0:00:54.9]} 30... Rf4 {[%clk 0:00:13.5]} 31. f3 {[%clk 0:00:48.3]} 31... gxf3
{[%clk 0:00:12.8]} 32. gxf3 {[%clk 0:00:48.2]} 32... Ra2 {[%clk 0:00:12.3]} 33.
Kb1 {[%clk 0:00:45.9]} 33... Rxa3 {[%clk 0:00:12.3]} 34. Rxg6+ {[%clk
0:00:41.5]} 34... Kf7 {[%clk 0:00:11.3]} 35. Rdg1 {[%clk 0:00:41.2]} 35... Raxf3
{[%clk 0:00:11.3]} 36. Rg7+ {[%clk 0:00:40.3]} 36... Ke8 {[%clk 0:00:10.7]} 37.
Rg8+ {[%clk 0:00:39]} 37... Rf8 {[%clk 0:00:08.7]} 38. Rxf8+ {[%clk 0:00:34.7]}
38... Kxf8 {[%clk 0:00:09.3]} 39. Nc5 {[%clk 0:00:32.8]} 39... Ke7 {[%clk
0:00:07.3]} 40. Rg7+ {[%clk 0:00:28.9]} 40... Rf7 {[%clk 0:00:07.7]} 41. Rg1
{[%clk 0:00:22.4]} 41... Kd6 {[%clk 0:00:05.3]} 42. Nxa4 {[%clk 0:00:21.2]}
42... b5 {[%clk 0:00:04.2]} 43. Nc3 {[%clk 0:00:21.1]} 43... e5 {[%clk
0:00:04.4]} 44. Rg6+ {[%clk 0:00:20.4]} 44... Kc7 {[%clk 0:00:03.7]} 45. d5
{[%clk 0:00:18.8]} 45... b4 {[%clk 0:00:03.4]} 46. Ne4 {[%clk 0:00:13.8]} 46...
cxd5 {[%clk 0:00:03.1]} 47. Nc5 {[%clk 0:00:12]} 47... Nb6 {[%clk 0:00:02.2]}
48. Kb2 {[%clk 0:00:10.9]} 48... d4 {[%clk 0:00:01.6]} 49. Kb3 {[%clk
0:00:10.9]} 49... e4 {[%clk 0:00:01.6]} 50. Nxe4 {[%clk 0:00:08.3]} 50... Re7
{[%clk 0:00:02.2]} 51. Nc5 {[%clk 0:00:07.8]} 51... Nd5 {[%clk 0:00:02.9]} 52.
Kc4 {[%clk 0:00:07.6]} 52... Nb6+ {[%clk 0:00:03.2]} 53. Kxd4 {[%clk 0:00:07.1]}
53... Re2 {[%clk 0:00:03.8]} 54. Kd3 {[%clk 0:00:06.5]} 54... Re5 {[%clk
0:00:03.5]} 55. Nb3 {[%clk 0:00:05.9]} 55... Rd5+ {[%clk 0:00:03.8]} 56. Ke4
{[%clk 0:00:05.5]} 56... Rd7 {[%clk 0:00:03.3]} 57. Nd4 {[%clk 0:00:04.3]} 57...
Nc4 {[%clk 0:00:02.7]} 58. Rc6+ {[%clk 0:00:03.6]} 58... Kb7 {[%clk 0:00:02.7]}
59. Rxc4 {[%clk 0:00:03.6]} 1-0